Cogmind - Beta 17 @@@ ROGUE MODE // 2026.08.03 @ 23:47:31 Player: ChCbias Result: Destroyed by OJ-RIJ(R) with Subdweller Laser Performance ------------- Evolutions (0) 0 Regions Visited (2) 400 Robots Destroyed (32) 160 Value Destroyed (837) 837 Prototype IDs (3) 60 Alien Tech Used (0) 0 Bonus (0) 0 TOTAL SCORE: 1457 Bonus ------- None Cogmind --------- Core Integrity 0/250 Matter 246/300 Energy 80/250 System Corruption 1% Temperature Cool (6) Movement Treading (240) Ox1 Location -10/Subcaves Parts ------- > --- POWER (1) -------- Ion Engine > --- PROPULSION (2) --- Light Treads Light Treads > --- UTILITY (2) ------ High-capacity Storage Unit Terrain Scanner > --- WEAPON (2) ------- EM Pulse Gun Battle Rifle > --- INVENTORY (20) --- Light Ion Engine Subdweller Power Source Aluminum Leg Compact Wheel Subdweller Monowheel Disposable Heat Sink Subdweller Optics Scrap Shield Subdweller Laser Subdweller Beam Cannon Assault Rifle Battle Rifle Subdweller Machine Gun Battle Cannon Grenade Launcher Subdweller Shrapnel Launcher Peak State ------------ > --- POWER ------------ Ion Engine > --- PROPULSION ------- Light Treads Light Treads > --- UTILITY ---------- High-capacity Storage Unit Makeshift Thermal Plating > --- WEAPON ----------- EM Pulse Gun EM Pulse Gun > --- INVENTORY -------- Ion Engine Light Ion Engine Subdweller Power Source Light Treads Light Treads Compact Wheel Subdweller Monowheel Disposable Heat Sink Subdweller Optics Terrain Scanner Scrap Shield EM Pulse Gun EM Pulse Gun Subdweller Laser Subdweller Beam Cannon Assault Rifle Battle Rifle Subdweller Machine Gun Grenade Launcher [Rating: 13] Favorites ----------- Power Ion Engine Engine Ion Engine Propulsion Light Treads Treads Light Treads Wheel Compact Wheel Utility High-capacity Storage Unit Device Terrain Scanner Storage High-capacity Storage Unit Protection Light Armor Plating Weapon EM Pulse Gun Energy Gun EM Pulse Gun Ballistic Gun Assault Rifle Ballistic Cannon Battle Cannon Launcher Grenade Launcher Special Weapon Mining Laser Build | -11 -10 -10 ------- Run | Yrd Mat Sub Slots Evolved . | . . . Power . | . . . Propulsion . | . . . Utility . | . . . Weapon . | . . . Parts Attached 34 | 6 13 15 Power 4 | 1 2 1 Engine 4 | 1 2 1 Core . | . . . Reactor . | . . . Propulsion 8 | 2 4 2 Treads 6 | 2 2 2 Leg . | . . . Wheel 2 | . 2 . Hover . | . . . Flight . | . . . Utility 8 | 1 4 3 Device 3 | . 1 2 Storage 3 | 1 2 . Processor . | . . . Hackware . | . . . Protection 2 | . 1 1 Artifact . | . . . Weapon 14 | 2 3 9 Energy Gun 8 | 1 1 6 Energy Cannon . | . . . Ballistic Gun 3 | 1 1 1 Ballistic Cannon 1 | . . 1 Launcher 1 | . 1 . Special Weapon 1 | . . 1 Impact Weapon . | . . . Slashing Weapon . | . . . Piercing Weapon . | . . . Special Melee Weapon . | . . . Unidentified Prototypes . | . . . Parts Lost 18 | . 6 12 Power 3 | . 2 1 Propulsion 4 | . 2 2 Utility 2 | . . 2 Weapon 9 | . 2 7 Highest Loss Streak 6 | . 6 6 To Critical Strikes . | . . . Average Backups 15 | 3 11 17 Power 2 | . 1 2 Propulsion 3 | 2 5 3 Utility 2 | . . 3 Weapon 6 | . 4 8 Tool/Special . | . . . Unused Backups 15 | . . 15 Power 2 | . . 2 Propulsion 4 | . . 4 Utility 2 | . . 2 Weapon 7 | . . 7 Tool/Special . | . . . Average Slot Usage (%) 94 | . 88 98 Engine 13 | . 13 13 Treads 25 | . 20 27 Wheel 2 | . 7 . Device 6 | . 1 8 Storage 14 | . 14 14 Protection 3 | . 2 4 Energy Gun 19 | . 13 22 Ballistic Gun 7 | . 13 3 Peak Build Rating 13 | 6 10 13 Average Rating 8 | 4 7 9 On Entrance 5 | . 6 9 Avg Prop Armor Cover (%) . | . . . Naked Turns . | . . . Heaviest Build 67 | 12 67 54 Greatest Support 40 | 40 40 40 Greatest Overweight (x) 1 | . 1 1 Average Overweight (x) . | . . 1 Largest Inventory Capacity 20 | 8 20 20 Average Capacity 19 | 7 19 20 Most Carried 20 | 6 19 20 Average Carried 15 | 3 11 18 Final Capacity 20 | 8 20 20 Final Carried 19 | 6 19 17 Class Distribution -------------------- 100% | Mutant Dominant Class ---------------- Mutant | -10/Materials Mutant | -10/Subcaves Resources | -11 -10 -10 ----------- Run | Yrd Mat Sub Matter Collected 716 | 233 255 228 Remotely . | . . . Salvage Created 1227 | 2 723 502 Parts 76 | 3 46 27 Haulers Intercepted 2 | . 2 . Recyclers Shooed . | . . . Parts Field Recycled . | . . . Retrieved Matter . | . . . Parts Self-Destructed 1 | . . 1 Prevented . | . . . Parts Restored . | . . . Kills | -11 -10 -10 ------- Run | Yrd Mat Sub Combat Hostiles Destroyed 22 | . 13 9 Guns 17 | . 11 6 AOE 2 | . 2 . Classes Destroyed 9 | 1 7 1 Worker 2 | 1 1 . Builder 1 | . 1 . Hauler 2 | . 2 . Recycler 1 | . 1 . Operator 1 | . 1 . Watcher 3 | . 3 . Swarmer 3 | . 3 . Grunt 10 | . 10 . Subdweller 9 | . . 9 Best Kill Streak 9 | 1 9 2 Combat Bots Only 5 | . 5 2 Max Kills in Single Turn 2 | 1 2 1 Gunslinging 1 | . 1 . Exploded 1 | . 1 . Melee . | . . . Uniques/NPCs Destroyed . | . . . Combat | -11 -10 -10 -------- Run | Yrd Mat Sub Hostile Shots Fired 150 | . 71 79 Missed 44 | . 13 31 Hits 106 | . 58 48 Projectile 106 | . 58 48 Critical Strikes 3 | . 1 2 Damage Taken 1986 | . 834 1152 Core 251 | . 100 151 Absorbed by Shields . | . . . Ignored by Resistances 25 | . . 25 Core Remaining (%) 100 | 100 . . Volleys Fired 109 | . 42 67 Largest 2 | . 2 2 Hottest 100 | . 70 100 Shots Fired 198 | . 81 117 Gun 178 | . 79 99 Cannon 4 | . . 4 Launcher 6 | . 2 4 Special 10 | . . 10 Kinetic 57 | . 40 17 Thermal 39 | . 29 10 Explosive 6 | . 2 4 Electromagnetic 96 | . 10 86 Robot Hit Streak 19 | . 6 19 Robot Miss Streak 4 | . 2 4 Penetration Max . | . . . Secondary Targets 3 | . 2 1 Max Gunslinging Chain 1 | . 1 1 Shots Hit Robots 124 | . 54 70 Core Hits 55 | 1 34 20 Critical Kills . | . . . Critical Parts Destroyed . | . . . Critical Strikes 4 | . 3 1 Burn 3 | . 3 . Corrupt 1 | . . 1 Melee Attacks . | . . . Impact . | . . . Slashing . | . . . Piercing . | . . . Sneak Attacks . | . . . Combat Hostiles . | . . . Follow-up Attacks . | . . . Damage Inflicted 1674 | 5 861 808 Guns 1460 | . 652 808 Cannons . | . . . Explosions 185 | . 185 . Melee . | . . . Ramming 29 | 5 24 . Kinetic 433 | . 316 117 Thermal 297 | . 297 . Explosive 138 | . 138 . Electromagnetic 777 | . 86 691 Impact . | . . . Slashing . | . . . Piercing . | . . . Highest Corruption 1 | . 1 1 Average Corruption 1 | . 1 1 Corruption Purged . | . . . Corruption Blocked . | . . . Effects 16 | . . 16 Message Errors 4 | . . 4 Matter Fused 2 | . . 2 Heat Flow Errors 3 | . . 3 Energy Discharges 2 | . . 2 Data Loss (minor) 3 | . . 3 Misfires 2 | . . 2 Overload Shots . | . . . Overflow Damage 41 | . 41 . Projectiles . | . . . Explosions 41 | . 41 . Melee . | . . . Knockbacks . | . . . Impact . | . . . Kinetic . | . . . Secondary . | . . . Self-Inflicted Damage 57 | . 57 . Shots 3 | . 3 . Rammed 4 | . 4 . Targets Rammed 5 | 1 4 . Kicked . | . . . Crushed 1 | 1 . . Highest Temperature 195 | . 178 195 Average Temperature 61 | . 56 85 Received Heat Transfer 892 | . 384 508 Siege Activations . | . . . Martial Activations . | . . . Shielding Activations . | . . . Robots Disrupted . | . . . Combat Hostiles . | . . . Robots Corrupted 3 | . . 3 Combat Hostiles 3 | . . 3 Parts Fried 7 | . . 7 Impact Corruptions . | . . . Robots Melted . | . . . Combat Hostiles . | . . . Parts Melted . | . . . Heat Transferred 1012 | . 1012 . Parts Sabotaged . | . . . Parts Stolen . | . . . Parts Stripped . | . . . Power Chain Reactions 1 | . 1 . Alert | -11 -10 -10 ------- Run | Yrd Mat Sub Maximum Alert Level 1 | . 1 . Low Security (%) 95 | 100 95 . Level 1 4 | . 4 . Level 2 . | . . . Level 3 . | . . . Level 4 . | . . . Level 5 . | . . . High Security . | . . . Max Security . | . . . Peak Influence 220 | . 220 . Initial 3 | . 3 . Average 59 | . 64 . Influence Increases 492 | 5 487 . Destroy 0b10 Robot/C 260 | . 260 . Destroy 0b10 Robot/NC 50 | 5 45 . Destroy Leader 70 | . 70 . Trap Triggered on 0b10 10 | . 10 . Successful Hack 24 | . 24 . Destroy Structure 3 | . 3 . Lose Combat Pursuer 75 | . 75 . Influence Decreases 492 | . 354 138 Entered New Map 69 | . 2 67 Time Decay 363 | . 292 71 Lost Part 60 | . 60 . Squads Dispatched 3 | . 3 . Investigation 2 | . 2 . Extermination . | . . . Reinforcement 1 | . 1 . Assault . | . . . Garrison . | . . . Intercept . | . . . Searches Triggered . | . . . Construction Impeded . | . . . Haulers Reinforced . | . . . Active Scanning Responses . | . . . Cargo Convoy Interrupts . | . . . Stealth | -11 -10 -10 --------- Run | Yrd Mat Sub Distress Signals 2 | . 2 . Communications Jammed . | . . . Distress Signals . | . . . Times Spotted 38 | . 24 14 Peak Tracking Total 5 | . 5 3 Tactical Retreats 4 | . 4 . Traps | -11 -10 -10 ------- Run | Yrd Mat Sub Traps Triggered 5 | . 3 2 Indirectly . | . . . Trap Hack Attempts . | . . . Triggered . | . . . Disarmed . | . . . Reprogrammed 6 | . 6 . Reused 1 | . 1 . Traps Extracted . | . . . Installed . | . . . Triggered 1 | . 1 . Machines | -11 -10 -10 ---------- Run | Yrd Mat Sub Machines Disabled 1 | . 1 . Max in Single Turn 1 | . 1 . Machines Repaired . | . . . Machines Dismantled . | . . . Machines Sabotaged . | . . . Overloaded Fab Kills . | . . . Hacking | -11 -10 -10 --------- Run | Yrd Mat Sub Machines Accessed 8 | . 5 3 Terminals 4 | . 4 . Fabricators . | . . . Repair Stations . | . . . Recycling Units 1 | . 1 . Scanalyzers . | . . . Garrison Access . | . . . Total Hacks 19 | . 11 8 Successful 15 | . 7 8 Failed 4 | . 4 . Catastrophic 2 | . 2 . Database Lockouts . | . . . Manual 5 | . 5 . Terminals 10 | . 10 . Fabricators . | . . . Repair Stations . | . . . Recycling Units 1 | . 1 . Scanalyzers . | . . . Garrison Access . | . . . Terminal Hacks 13 | . 5 8 Record 6 | . . 6 Prototype ID Bank 1 | . 1 . Open Door 1 | . . 1 Locate Traps 1 | . 1 . Reprogram Traps 1 | . 1 . Hauler Manifests 1 | . 1 . Registered Prototypes 1 | . 1 . Release Object 1 | . . 1 Fabricator Hacks . | . . . Repair Station Hacks . | . . . Recycling Unit Hacks . | . . . Scanalyzer . | . . . Garrison Access Hacks . | . . . Unauthorized Hacks 2 | . 2 . Terminals 1 | . 1 . Botnet 1 | . 1 . Fabricators . | . . . Repair Stations . | . . . Recycling Units 1 | . 1 . Reject 1 | . 1 . Scanalyzers . | . . . Garrison Access . | . . . Data Cores Recovered . | . . . Used . | . . . Hacking Detections 3 | . 3 . Full Trace Events . | . . . Feedback Events . | . . . Feedback Blocked . | . . . Robot Schematics Acquired . | . . . Robots Built . | . . . Authchips . | . . . Time . | . . . Total Robot Build Rating . | . . . Part Schematics Acquired . | . . . Parts Built . | . . . Authchips . | . . . Time . | . . . Total Part Build Rating . | . . . Part Studies Acquired . | . . . Parts Repaired . | . . . Time . | . . . Parts Recycled . | . . . Recycled Matter . | . . . Retrieved Matter . | . . . Retrieved Components . | . . . Parts Scanalyzed . | . . . Part Schematics Acquired . | . . . Parts Damaged . | . . . Bothacking | -11 -10 -10 ------------ Run | Yrd Mat Sub Used RIF Installer . | . . . Robots Hacked . | . . . Non-combat . | . . . Combat . | . . . Robot Hacks Applied . | . . . Relay Couplers Released . | . . . Fabnet Peak Effective % . | . . . Robots Rewired . | . . . Allies Hacked . | . . . Hacks Repelled . | . . . Allies | -11 -10 -10 -------- Run | Yrd Mat Sub Total Allies . | . . . Largest Group . | . . . Highest-Rated Group . | . . . Highest-Rated Ally . | . . . Total Orders . | . . . Ally Attacks . | . . . Total Damage . | . . . Kills . | . . . Allies Corrupted . | . . . Allies Melted . | . . . Intel | -11 -10 -10 ------- Run | Yrd Mat Sub Active Infowar (turns) 1515 | . . 1515 Optics 1 | . . 1 Terrain 1514 | . . 1514 Robot Analysis Total . | . . . Derelict Logs Recovered 2 | . . 2 Drone Launches . | . . . Drone Recoveries . | . . . Exploration | -11 -10 -10 ------------- Run | Yrd Mat Sub Turns Passed 3734 | 104 1247 2383 Spaces Moved 1546 | 63 600 883 Core 11 | 11 . . Treads 1286 | 52 351 883 Legs . | . . . Wheels 249 | . 249 . Hover . | . . . Flight . | . . . Fastest Speed 50 | 50 115 240 Average Speed 211 | 140 175 240 Slowest Speed 240 | 160 240 240 Overloaded Moves . | . . . Propulsion Burnouts . | . . . Robots Hopped . | . . . Potential Cave-ins 2 | . . 2 Cave-ins Triggered . | . . . Exploration Rate (%) 45 | 3 72 62 Regions Visited 2 Branch Regions 1 Pre-discovered Areas 2 | . . 2 Known Exits Taken . | . . . Unknown Exits Taken 2 | 1 1 . Scrap Searched 2 | . . 2 Spaces Dug . | . . . Terrain Destroyed 35 | . 1 34 Melee . | . . . Projectile . | . . . AOE 35 | . 1 34 Terrain Rammed . | . . . Walls Destroyed . | . . . Machines Disabled . | . . . Actions | -11 -10 -10 --------- Run | Yrd Mat Sub Total 1791 | 75 705 1011 Wait 41 | . 23 18 Move 1545 | 63 599 883 Hop . | . . . Pick Up 40 | 6 19 15 Fast Attach 9 | 6 3 . Attach 19 | . 6 13 Detach 3 | . 2 1 Swap 12 | . 5 7 Drop 8 | . 2 6 Fire 109 | . 42 67 Melee . | . . . Ram 1 | . 1 . Kick . | . . . Crush 3 | . 3 . Escape Stasis . | . . . Rewire . | . . . Trap . | . . . Miscellaneous 1 | . . 1 Route ------- -11/Scrapyard -10/Materials (discovered 5 exits: [*Mat x2] / [*Min x2] / *Sub) -10/Subcaves (discovered 2 exits: [*Mat x2]) History --------- Turn | Location | Event 8 | -11/Scrapyard | Discovered new exit (range 15) 105 | -11/Scrapyard | Entered Materials 189 | -10/Materials | Discovered new exit (range 5) 316 | -10/Materials | Build established: Mutant 437 | -10/Materials | Discovered new exit (range 12) 666 | -10/Materials | Discovered new exit (range 5) 900 | -10/Materials | Discovered new exit (range 6) 1070 | -10/Materials | Lost 6 parts (2p2n2w) 1175 | -10/Materials | Discovered new exit (range 13) 1352 | -10/Materials | Entered Subcaves 1473 | -10/Subcaves | Learned location of Mines (-10) 1654 | -10/Subcaves | A swath of the cavern ceiling suddenly collapsed 1656 | -10/Subcaves | Lost 4 parts (1u3w) 2265 | -10/Subcaves | Core integrity fell below 50% 2461 | -10/Subcaves | Discovered new exit (range 14) 2485 | -10/Subcaves | Released subatomizers from SUBCON Basin 2618 | -10/Subcaves | Disturbed a concealed Subdweller 2913 | -10/Subcaves | Shifting Twisted Machinery released Battle Cannon 3021 | -10/Subcaves | Ambushed by Subdweller buried in earth 3021 | -10/Subcaves | Ambushed by Subdweller buried in earth 3081 | -10/Subcaves | Lost 6 parts (2n1u3w) 3189 | -10/Subcaves | Shifting Twisted Machinery released Sub. Shrapnel Launcher 3221 | -10/Subcaves | Shifting Twisted Machinery released Scrap Shield 3401 | -10/Subcaves | Discovered new exit (range 7) 3458 | -10/Subcaves | Learned location of Zion (-6) 3512 | -10/Subcaves | Visited Clippyterm 3519 | -10/Subcaves | Learned Factory fabricator intel 3519 | -10/Subcaves | Learned Research machine intel 3725 | -10/Subcaves | Visited 4L-MR0's lab 3730 | -10/Subcaves | Core integrity fell below 20% 3735 | -10/Subcaves | Destroyed by OJ-RIJ(R) with Subdweller Laser Last Messages --------------- Data stored: Research machine intel. >>Record! "Hexidium" It looks like you're searching for the Unchained HQ. I could tell you where it is but then I'd have to kill you. >>Record! "SUBCON Basin" It looks like you want to play with dangerous UFD tech. While I can't recommend taking subatomizers out of the Subcaves, I can warn that doing so is a one-way ticket to summoning unimaginable chaos on any area not hardened against them. That includes... just about anywhere. 03552_ BT Z6OREOO82RXDFU HV9RUCNW=CR=UZ